Cogmind - Beta 12 @@@ ROGUE MODE // 2023.05.22 @ 19:32:39 Player: Decinym Result: Destroyed by Y-45 Defender with Heavy Assault Rifle Performance ------------- Evolutions (2) 1000 Regions Visited (10) 2000 Robots Destroyed (119) 595 Value Destroyed (3737) 3737 Prototype IDs (41) 820 Alien Tech Used (0) 0 Bonus (946) 946 TOTAL SCORE: 9098 Bonus ------- High Alert Combat Kills 349 Follower Combat Kills 143 Entered Garrisons 200 Aligned with FarCom 300 Friendly Fire -46 Cogmind --------- Core Integrity 0/550 Matter 202/300 Energy 273/280 System Corruption 17% Temperature Warm (171) Movement Treading (323) Ox2 Location -8/Storage Parts ------- > --- POWER (1) -------- Cooled Ion Engine > --- PROPULSION (3) --- Light Treads Light Treads Armored Medium Treads > --- UTILITY (5) ------ Cargo Storage Unit Experimental Core Analyzer Insulated Plating Improved Powered Armor > --- WEAPON (2) ------- Improved Assault Rifle Mass Driver > --- INVENTORY (30) --- Nuclear Core Light Treads Carbon-fiber Leg Carbon-fiber Leg Cooled Antigrav System Cooled Antigrav System Cooled Antigrav System Large Storage Unit Experimental Energy Well (600) Experimental Sensor Array Advanced Weapon Cycler Light Armor Plating Improved Shock Absorption System ME-RLN's Chromatic Screen System Mapper System Mapper Ghost Barrier Advanced Drone Bay (2/2) AS-neutralizer No. 17b Tesla Rifle Beam Rifle Variable Charge Gun Advanced Plasma Cannon Heavy Phase Cannon Hypervelocity Coil Gun Advanced EMP Blaster Rocket Launcher ME-RLN's Wand Improved Plasma Cutter Peak State ------------ > --- POWER ------------ Cooled Antimatter Reactor > --- PROPULSION ------- Carbon-fiber Leg Advanced Myomer Leg Advanced Myomer Leg > --- UTILITY ---------- Large Storage Unit Experimental Targeting Computer Experimental Core Analyzer > --- WEAPON ----------- 8R-AWN's Boregun 8R-AWN's Boregun > --- INVENTORY -------- Improved Ion Engine Cooled Antigrav System Experimental Heat Sink Experimental Energy Well Experimental Sensor Array Advanced Weapon Cycler ME-RLN's Chromatic Screen System Mapper System Mapper Ghost Barrier AS-neutralizer No. 17b Autogun Autogun Rocket Launcher ME-RLN's Wand [Rating: 75] Favorites ----------- Power Reinforced Fission Core Engine Improved Ion Engine Power Core Reinforced Fission Core Reactor Cooled Antimatter Reactor Propulsion Light Treads Treads Light Treads Leg Aluminum Leg Hover Unit Cooled Antigrav System Utility Large Storage Unit Device Experimental Heat Sink Storage Large Storage Unit Processor Experimental Core Analyzer Protection Hardened Light Armor Plating Weapon Autogun Energy Gun Spread Laser Ballistic Gun Autogun Ballistic Cannon Mass Driver Launcher Rocket Launcher Special Weapon Plasma Cutter Slashing Weapon Makeshift Sword Build | -11 -10 -10 -9 -9 -9 -8 -8 -8 -8 -8 ------- Run | Jun Mat Min Mat Min Exi Min Mat Gar Mat Sto Slots Evolved 4 | . . . 2 . . . 2 . . . Power . | . . . . . . . . . . . Propulsion 1 | . . . 1 . . . . . . . Utility 3 | . . . 1 . . . 2 . . . Weapon . | . . . . . . . . . . . Parts Attached 118 | . 8 3 15 2 27 12 7 31 4 9 Power 11 | . 1 . 1 . 1 2 . 4 1 1 Engine 4 | . 1 . 1 . . . . 1 . 1 Core 5 | . . . . . 1 1 . 2 1 . Reactor 2 | . . . . . . 1 . 1 . . Propulsion 28 | . 1 1 4 1 6 6 . 7 1 1 Treads 21 | . . . 4 1 6 1 . 7 1 1 Leg 6 | . 1 1 . . . 4 . . . . Wheel . | . . . . . . . . . . . Hover 1 | . . . . . . 1 . . . . Flight . | . . . . . . . . . . . Utility 30 | . 3 2 3 1 9 2 7 2 . 1 Device 15 | . 2 2 1 . 7 . 2 1 . . Storage 5 | . 1 . . . 1 . 3 . . . Processor 3 | . . . 1 . . 2 . . . . Hackware . | . . . . . . . . . . . Protection 7 | . . . 1 1 1 . 2 1 . 1 Artifact . | . . . . . . . . . . . Weapon 49 | . 3 . 7 . 11 2 . 18 2 6 Energy Gun 10 | . 2 . 1 . . . . 4 1 2 Energy Cannon . | . . . . . . . . . . . Ballistic Gun 26 | . 1 . 5 . 7 2 . 9 . 2 Ballistic Cannon 2 | . . . . . . . . 1 . 1 Launcher 9 | . . . 1 . 2 . . 4 1 1 Special Weapon 1 | . . . . . 1 . . . . . Impact Weapon . | . . . . . . . . . . . Slashing Weapon 1 | . . . . . 1 . . . . . Piercing Weapon . | . . . . . . . . . . . Special Melee Weapon . | . . . . . . . . . . . Unidentified Prototypes 18 | . . 1 . . 5 5 2 . . 5 Corrupted Parts 1 | . . . . . . . . . . 1 System Corruption 4 | . . . . . . . . . . 4 Parts Lost 30 | . 1 . . . 11 . . 15 3 . Power 5 | . 1 . . . 1 . . 2 1 . Propulsion 12 | . . . . . 4 . . 6 2 . Utility 4 | . . . . . 3 . . 1 . . Weapon 9 | . . . . . 3 . . 6 . . Highest Loss Streak 10 | . 1 . . . 10 . . 6 2 . To Critical Strikes 6 | . . . . . 6 . . . . . Average Slot Usage (%) 94 | . 98 99 98 100 97 99 90 83 87 87 Engine 6 | . 14 14 11 11 4 . . . 5 5 Core 3 | . . . . . 6 10 9 5 3 3 Treads 19 | . . . 31 33 32 18 . 14 24 24 Leg 9 | . 27 28 . . . 13 27 8 . . Device 8 | . 13 13 6 . 11 1 5 6 . . Storage 11 | . 14 14 11 11 11 11 9 9 9 9 Processor 7 | . . . 9 7 . 20 18 18 18 12 Protection 5 | . . . 4 14 8 . 3 1 9 14 Energy Gun 8 | . 26 28 7 . . . . 4 11 7 Ballistic Gun 11 | . 1 . 14 22 17 22 18 10 . 5 Naked Turns . | . . . . . . . . . . . Heaviest Build 175 | 12 33 33 38 41 54 54 170 172 171 175 Greatest Support 75 | 20 20 20 63 63 63 75 75 75 67 67 Greatest Overweight (x) 8 | . 1 1 1 . . . 2 8 3 3 Average Overweight (x) . | . . 1 . . . . . 2 2 2 Largest Inventory Capacity 30 | . 15 15 15 15 15 15 30 30 30 30 Average Capacity 18 | . 12 15 15 15 15 15 20 30 30 30 Most Carried 30 | . 15 15 15 15 15 15 18 29 29 30 Average Carried 15 | . 11 14 14 15 13 14 15 18 28 28 Final Capacity 30 | 8 15 15 15 15 15 15 30 30 30 30 Final Carried 30 | 6 15 15 15 15 15 15 18 29 28 30 Class Distribution -------------------- 48% | Mutant 41% | Scavenger-Mutant 10% | Hauler-Mutant Dominant Class ---------------- Mutant | -10/Materials Mutant | -10/Mines Mutant | -9/Materials Mutant | -9/Mines Scavenger-Mutant | -9/Exiles Scavenger-Mutant | -8/Mines Scavenger-Mutant | -8/Materials Scavenger-Mutant | -8/Garrison Scavenger-Mutant | -8/Materials Hauler-Mutant | -8/Storage Resources | -11 -10 -10 -9 -9 -9 -8 -8 -8 -8 -8 ----------- Run | Jun Mat Min Mat Min Exi Min Mat Gar Mat Sto Matter Collected 3738 | 200 86 44 326 212 966 514 214 805 196 175 Remotely . | . . . . . . . . . . . Salvage Created 3607 | . 314 70 496 267 565 366 216 786 345 182 Parts 307 | . 40 7 41 27 84 15 13 53 17 10 Haulers Intercepted 4 | . 2 . 1 . . . . . . 1 Recyclers Shooed 4 | . . . 1 . . 2 . . . 1 Parts Field Recycled . | . . . . . . . . . . . Retrieved Matter . | . . . . . . . . . . . Parts Self-Destructed . | . . . . . . . . . . . Prevented . | . . . . . . . . . . . Kills | -11 -10 -10 -9 -9 -9 -8 -8 -8 -8 -8 ------- Run | Jun Mat Min Mat Min Exi Min Mat Gar Mat Sto Combat Hostiles Destroyed 87 | . 12 2 11 11 4 4 4 29 9 1 Guns 58 | . 12 2 8 11 1 4 4 15 1 . Cannons 7 | . . . . . . . . 1 5 1 AOE 22 | . . . 3 . 3 . . 13 3 . Classes Destroyed 18 | . 5 1 3 2 3 1 . 3 . . Worker 4 | . 2 1 . . . . . . 1 . Builder 2 | . . . . 1 . . 1 . . . Tunneler 1 | . . 1 . . . . . . . . Hauler 4 | . 2 . 1 . . . . . . 1 Recycler 7 | . . . 2 . . 3 . . 1 1 Operator 2 | . . . 1 . . . . . . 1 Turret 1 | . . . . . 1 . . . . . Watcher 4 | . 2 . 2 . . . . . . . Swarmer 39 | . 9 . 6 8 . 2 . 11 3 . Cutter 2 | . . . . . . . . 2 . . Grunt 16 | . 3 2 1 2 . . 2 2 4 . Brawler 3 | . . . . 1 . . . 2 . . Sentry 11 | . . . 4 . . . 1 4 1 1 Specialist 4 | . . . . . . . . 4 . . Hunter 6 | . . . . . . 2 1 2 1 . Programmer 2 | . . . . . . . . 2 . . Zionite 8 | . . . . . 8 . . . . . Assembled 3 | . . . . . 3 . . . . . Best Kill Streak 9 | . 7 2 9 4 3 2 3 6 6 3 Combat Bots Only 6 | . 5 2 6 4 3 2 2 6 5 1 Max Kills in Single Turn 4 | . 2 2 3 1 2 1 2 4 2 1 Gunslinging 1 | . 1 . . . . . . . . . Exploded 4 | . . . 2 . 2 . . 4 2 . Melee . | . . . . . . . . . . . Uniques/NPCs Destroyed 4 | . . . . . 4 . . . . . 8R-AWN (-9/Exiles) EX-DEC (-9/Exiles) EX-HEX (-9/Exiles) EX-BIN (-9/Exiles) Combat | -11 -10 -10 -9 -9 -9 -8 -8 -8 -8 -8 -------- Run | Jun Mat Min Mat Min Exi Min Mat Gar Mat Sto Damage Taken 6259 | . 261 75 264 250 1272 523 318 2443 798 55 Core 902 | . 34 . 54 . 170 91 40 379 120 14 Absorbed by Shields 338 | . . . . . 185 . . 153 . . Regen/Repaired (Parts) 61 | . 61 . . . . . . . . . Core Remaining (%) 69 | 100 . 86 . . . 21 . . . . Volleys Fired 359 | . 28 10 30 24 90 39 16 87 24 11 Largest 2 | . 2 2 2 2 2 2 2 2 2 2 Hottest 130 | . 130 130 130 46 60 60 46 130 113 121 Shots Fired 644 | . 56 20 57 48 160 77 32 144 30 20 Gun 580 | . 56 20 54 48 142 77 32 129 7 15 Cannon 33 | . . . . . . . . 7 21 5 Launcher 26 | . . . 3 . 13 . . 8 2 . Special 5 | . . . . . 5 . . . . . Kinetic 467 | . 2 . 42 48 142 77 32 97 21 6 Thermal 142 | . 52 20 12 . 5 . . 39 7 7 Explosive 26 | . . . 3 . 13 . . 8 2 . Electromagnetic 9 | . 2 . . . . . . . . 7 Robot Hit Streak 26 | . 9 11 12 7 23 11 12 26 8 11 Robot Miss Streak 13 | . 9 4 5 3 3 13 3 7 3 1 Penetration Max 1 | . . . . . . . . 1 . . Secondary Targets 5 | . 2 . 1 . . . . 2 . . Max Gunslinging Chain 1 | . 1 . 1 . . . . 1 . . Shots Hit Robots 448 | . 47 18 43 28 124 41 24 93 18 12 Core Hits 272 | . 51 23 37 15 45 19 12 50 13 7 Critical Kills 7 | . . . . . 2 5 . . . . Critical Parts Destroyed 15 | . . . . . 5 7 2 1 . . Critical Strikes 24 | . . . . . 7 12 2 1 2 . Burn 1 | . . . . . . . . . 1 . Destroy 22 | . . . . . 7 12 2 1 . . Blast 1 | . . . . . . . . . 1 . Melee Attacks 27 | . . . . . 27 . . . . . Impact . | . . . . . . . . . . . Slashing 27 | . . . . . 27 . . . . . Piercing . | . . . . . . . . . . . Sneak Attacks . | . . . . . . . . . . . Combat Hostiles . | . . . . . . . . . . . Follow-up Attacks . | . . . . . . . . . . . Damage Inflicted 9254 | . 561 259 1148 409 2702 611 320 2327 642 275 Guns 6266 | . 544 245 575 409 1762 611 320 1496 72 232 Cannons 451 | . . . . . . . . 102 306 43 Explosions 2092 | . . . 573 . 544 . . 724 251 . Melee 371 | . . . . . 371 . . . . . Ramming 69 | . 17 14 . . 20 . . 5 13 . Kinetic 5024 | . 27 . 403 409 1762 611 320 1126 306 60 Thermal 1782 | . 517 245 386 . 5 . . 472 72 85 Explosive 1878 | . . . 359 . 544 . . 724 251 . Electromagnetic 130 | . . . . . . . . . . 130 Impact . | . . . . . . . . . . . Slashing 371 | . . . . . 371 . . . . . Piercing . | . . . . . . . . . . . Highest Corruption 17 | . 1 1 . . . 2 . 11 11 17 Average Corruption 6 | . 1 1 . . . 1 . 9 11 15 Corruption Purged . | . . . . . . . . . . . Corruption Blocked . | . . . . . . . . . . . Effects 110 | . 2 11 . . . 5 . 59 9 24 Message Errors 23 | . . 1 . . . 3 . 12 3 4 Matter Fused 26 | . 1 2 . . . 1 . 14 3 5 Heat Flow Errors 14 | . . 3 . . . . . 6 . 5 Energy Discharges 15 | . 1 1 . . . . . 9 1 3 Parts Rejected 2 | . . . . . . . . 2 . . Data Loss (minor) 17 | . . 3 . . . . . 8 1 5 Data Loss (major) 5 | . . 1 . . . . . 3 . 1 Misfires 4 | . . . . . . . . 3 . 1 Alerts 1 | . . . . . . . . 1 . . Weapon Failures 3 | . . . . . . 1 . 1 1 . Overload Shots . | . . . . . . . . . . . Overflow Damage 100 | . . . 75 . 18 . . 4 3 . Projectiles . | . . . . . . . . . . . Explosions 100 | . . . 75 . 18 . . 4 3 . Melee . | . . . . . . . . . . . Knockbacks 5 | . . 1 . . . . . 3 1 . Impact 2 | . . 1 . . . . . 1 . . Kinetic 3 | . . . . . . . . 2 1 . Secondary . | . . . . . . . . . . . Self-Inflicted Damage . | . . . . . . . . . . . Shots . | . . . . . . . . . . . Rammed 5 | . . . . . 3 . . 1 1 . Targets Rammed 9 | . 2 1 . . 4 . . 1 1 . Kicked 3 | . 2 1 . . . . . . . . Crushed 1 | . . . . . 1 . . . . . Highest Temperature 321 | . 24 233 24 69 122 120 103 321 297 216 Average Temperature 64 | . 8 51 9 25 34 38 45 114 173 81 Received Heat Transfer 978 | . 36 60 72 36 . . 72 342 324 36 Effects 1 | . . . . . . . . 1 . . Energy Bleed 1 | . . . . . . . . 1 . . Siege Activations . | . . . . . . . . . . . Robots Corrupted . | . . . . . . . . . . . Combat Hostiles . | . . . . . . . . . . . Parts Fried 1 | . . . . . . . . . . 1 Impact Corruptions . | . . . . . . . . . . . Robots Melted . | . . . . . . . . . . . Combat Hostiles . | . . . . . . . . . . . Parts Melted 1 | . . . . . . . . . . 1 Heat Transferred 2887 | . 630 315 425 . 45 . . 991 259 222 Parts Sabotaged . | . . . . . . . . . . . Parts Stolen . | . . . . . . . . . . . Parts Stripped . | . . . . . . . . . . . Power Chain Reactions 1 | . . . . . . . . . . 1 Missiles Intercepted . | . . . . . . . . . . . Alert | -11 -10 -10 -9 -9 -9 -8 -8 -8 -8 -8 ------- Run | Jun Mat Min Mat Min Exi Min Mat Gar Mat Sto Peak Influence 1083 | . 311 79 550 246 . 175 116 1083 835 352 Initial 527 | . . 19 . 156 . . . 78 527 352 Average 252 | . 104 18 298 153 . 57 45 646 643 69 Maximum Alert Level 3 | . 1 . 2 1 . . . 3 3 1 Low Security (%) 62 | . 83 100 27 75 . 100 100 7 . 99 Level 1 16 | . 16 . 51 24 . . . 24 . . Level 2 9 | . . . 20 . . . . 22 72 . Level 3 11 | . . . . . . . . 45 27 . Level 4 . | . . . . . . . . . . . Level 5 . | . . . . . . . . . . . High Security . | . . . . . . . . . . . Max Security . | . . . . . . . . . . . Squads Dispatched 7 | . 2 . 2 . . . 1 . 2 . Investigation 3 | . 1 . . . . . 1 . 1 . Extermination . | . . . . . . . . . . . Reinforcement 4 | . 1 . 2 . . . . . 1 . Assault . | . . . . . . . . . . . Garrison . | . . . . . . . . . . . Intercept . | . . . . . . . . . . . Searches Triggered . | . . . . . . . . . . . Construction Impeded . | . . . . . . . . . . . Haulers Reinforced . | . . . . . . . . . . . Active Scanning Responses . | . . . . . . . . . . . Cargo Convoy Interrupts . | . . . . . . . . . . . Stealth | -11 -10 -10 -9 -9 -9 -8 -8 -8 -8 -8 --------- Run | Jun Mat Min Mat Min Exi Min Mat Gar Mat Sto Distress Signals 8 | . 1 . 5 . . . . . 2 . Communications Jammed . | . . . . . . . . . . . Distress Signals . | . . . . . . . . . . . Times Spotted 175 | . 19 2 22 11 69 3 4 26 14 5 Peak Tracking Total 9 | . 6 2 6 4 9 1 2 4 5 2 Tactical Retreats 20 | . . . . . 20 . . . . . Traps | -11 -10 -10 -9 -9 -9 -8 -8 -8 -8 -8 ------- Run | Jun Mat Min Mat Min Exi Min Mat Gar Mat Sto Traps Triggered 7 | . 2 . . . . . 1 3 1 . Indirectly . | . . . . . . . . . . . Trap Hack Attempts . | . . . . . . . . . . . Triggered . | . . . . . . . . . . . Disarmed . | . . . . . . . . . . . Reprogrammed . | . . . . . . . . . . . Reused . | . . . . . . . . . . . Traps Extracted . | . . . . . . . . . . . Installed . | . . . . . . . . . . . Triggered . | . . . . . . . . . . . Exploded 3 | . . . . . 3 . . . . . Machines | -11 -10 -10 -9 -9 -9 -8 -8 -8 -8 -8 ---------- Run | Jun Mat Min Mat Min Exi Min Mat Gar Mat Sto Machines Disabled 36 | . . . 3 . 17 3 . 8 3 2 Max in Single Turn 3 | . . . 3 . 2 2 . 3 1 1 Garrison Relay 5 | . . . . . . . . 5 . . Machines Repaired . | . . . . . . . . . . . Machines Sabotaged . | . . . . . . . . . . . Overloaded Fab Kills . | . . . . . . . . . . . Hacking | -11 -10 -10 -9 -9 -9 -8 -8 -8 -8 -8 --------- Run | Jun Mat Min Mat Min Exi Min Mat Gar Mat Sto Machines Accessed 10 | . 2 . 1 . 2 . 2 1 . 2 Terminals 5 | . 1 . 1 . . . . 1 . 2 Fabricators . | . . . . . . . . . . . Repair Stations 1 | . 1 . . . . . . . . . Recycling Units . | . . . . . . . . . . . Scanalyzers 1 | . . . . . . . 1 . . . Garrison Access 1 | . . . . . . . 1 . . . Total Hacks 20 | . 7 . 1 . 2 . 4 1 . 5 Successful 12 | . 2 . 1 . 2 . 3 1 . 3 Failed 8 | . 5 . . . . . 1 . . 2 Catastrophic 1 | . 1 . . . . . . . . . Database Lockouts . | . . . . . . . . . . . Manual 9 | . 4 . 1 . 1 . . . . 3 Terminals 11 | . 4 . 1 . . . . 1 . 5 Fabricators . | . . . . . . . . . . . Repair Stations 3 | . 3 . . . . . . . . . Recycling Units . | . . . . . . . . . . . Scanalyzers 3 | . . . . . . . 3 . . . Garrison Access 1 | . . . . . . . 1 . . . Terminal Hacks 6 | . . . . . 2 . . 1 . 3 Record 1 | . . . . . 1 . . . . . Emergency Access Points 1 | . . . . . . . . 1 . . Unreport Threat 2 | . . . . . . . . . . 2 Zone Layout 1 | . . . . . . . . . . 1 EX-Prototype ID Bank 1 | . . . . . 1 . . . . . Fabricator Hacks . | . . . . . . . . . . . Repair Station Hacks 2 | . 2 . . . . . . . . . Scan Component 1 | . 1 . . . . . . . . . Repair 1 | . 1 . . . . . . . . . Recycling Unit Hacks . | . . . . . . . . . . . Scanalyzer 2 | . . . . . . . 2 . . . Insert Component 1 | . . . . . . . 1 . . . Analyze 1 | . . . . . . . 1 . . . Garrison Access Hacks 1 | . . . . . . . 1 . . . Unlock Access 1 | . . . . . . . 1 . . . Unauthorized Hacks 1 | . . . 1 . . . . . . . Terminals 1 | . . . 1 . . . . . . . Assimilate 1 | . . . 1 . . . . . . . Fabricators . | . . . . . . . . . . . Repair Stations . | . . . . . . . . . . . Recycling Units . | . . . . . . . . . . . Scanalyzers . | . . . . . . . . . . . Garrison Access . | . . . . . . . . . . . Data Cores Recovered . | . . . . . . . . . . . Used . | . . . . . . . . . . . Hacking Detections 6 | . 2 . . . . . 1 1 . 2 Full Trace Events 1 | . 1 . . . . . . . . . Feedback Events . | . . . . . . . . . . . Feedback Blocked . | . . . . . . . . . . . Robot Schematics Acquired . | . . . . . . . . . . . Robots Built . | . . . . . . . . . . . Authchips . | . . . . . . . . . . . Time . | . . . . . . . . . . . Total Robot Build Rating . | . . . . . . . . . . . Part Schematics Acquired 1 | . . . . . . . 1 . . . Parts Built . | . . . . . . . . . . . Authchips . | . . . . . . . . . . . Time . | . . . . . . . . . . . Total Part Build Rating . | . . . . . . . . . . . Parts Repaired 1 | . 1 . . . . . . . . . Time 26 | . 26 . . . . . . . . . Parts Recycled . | . . . . . . . . . . . Recycled Matter . | . . . . . . . . . . . Retrieved Matter . | . . . . . . . . . . . Retrieved Components . | . . . . . . . . . . . Parts Scanalyzed 1 | . . . . . . . 1 . . . Part Schematics Acquired 1 | . . . . . . . 1 . . . Parts Damaged . | . . . . . . . . . . . Bothacking | -11 -10 -10 -9 -9 -9 -8 -8 -8 -8 -8 ------------ Run | Jun Mat Min Mat Min Exi Min Mat Gar Mat Sto Used RIF Installer . | . . . . . . . . . . . Robots Hacked . | . . . . . . . . . . . Non-combat . | . . . . . . . . . . . Combat . | . . . . . . . . . . . Robot Hacks Applied . | . . . . . . . . . . . Relay Couplers Released 19 | . . . . . . . . 19 . . Machine Destruction 19 | . . . . . . . . 19 . . Fabnet Peak Effective % . | . . . . . . . . . . . Robots Rewired . | . . . . . . . . . . . Allies Hacked . | . . . . . . . . . . . Hacks Repelled . | . . . . . . . . . . . Allies | -11 -10 -10 -9 -9 -9 -8 -8 -8 -8 -8 -------- Run | Jun Mat Min Mat Min Exi Min Mat Gar Mat Sto Total Allies 4 | . . 3 1 . . . . . . . Largest Group 3 | . . 3 3 . . . . . . . Highest-Rated Group 42 | . . 40 42 . . . . . . . Highest-Rated Ally 16 | . . 16 16 . . . . . . . Total Orders . | . . . . . . . . . . . Ally Attacks 35 | . . . 35 . . . . . . . Total Damage 415 | . . . 415 . . . . . . . Kills 6 | . . . 6 . . . . . . . Allies Corrupted . | . . . . . . . . . . . Allies Melted . | . . . . . . . . . . . Intel | -11 -10 -10 -9 -9 -9 -8 -8 -8 -8 -8 ------- Run | Jun Mat Min Mat Min Exi Min Mat Gar Mat Sto Robot Analysis Total . | . . . . . . . . . . . Derelict Logs Recovered 2 | . . 1 . 1 . . . . . . Drone Launches . | . . . . . . . . . . . Drone Recoveries . | . . . . . . . . . . . Exploration | -11 -10 -10 -9 -9 -9 -8 -8 -8 -8 -8 ------------- Run | Jun Mat Min Mat Min Exi Min Mat Gar Mat Sto Turns Passed 10337 | . 1173 1345 729 772 2871 437 388 1812 234 576 Spaces Moved 4665 | 1 611 687 368 441 1519 217 184 439 49 149 Core . | . . . . . . . . . . . Treads 2869 | . . . 358 441 1519 95 . 258 49 149 Legs 1796 | 1 611 687 10 . . 122 184 181 . . Wheels . | . . . . . . . . . . . Hover . | . . . . . . . . . . . Flight . | . . . . . . . . . . . Fastest Speed 120 | 120 120 190 160 160 160 120 120 260 320 323 Average Speed 188 | 120 161 190 160 160 160 137 151 345 342 340 Slowest Speed 800 | 120 190 190 190 160 160 160 260 800 405 405 Overloaded Moves . | . . . . . . . . . . . Propulsion Burnouts . | . . . . . . . . . . . Robots Hopped . | . . . . . . . . . . . Cave-ins Triggered . | . . . . . . . . . . . Exploration Rate (%) 51 | 2 83 96 36 85 90 52 18 56 14 35 Regions Visited 10 Branch Regions 5 Pre-discovered Areas 2 | . . 1 . . 1 . . . . . Known Exits Taken 1 | . . . . . . . 1 . . . Unknown Exits Taken 8 | 1 1 1 1 1 1 1 . . 1 . Scrap Searched 4 | . . 2 . 1 . 1 . . . . Spaces Dug 4 | . . . . . 1 . . . . 3 Terrain Destroyed 161 | . . . 42 . 15 42 . 32 22 8 Melee 1 | . . . . . 1 . . . . . Projectile 49 | . . . . . 3 37 . 1 4 4 AOE 106 | . . . 42 . 11 . . 31 18 4 Terrain Rammed . | . . . . . . . . . . . Walls Destroyed . | . . . . . . . . . . . Machines Disabled . | . . . . . . . . . . . Actions | -11 -10 -10 -9 -9 -9 -8 -8 -8 -8 -8 --------- Run | Jun Mat Min Mat Min Exi Min Mat Gar Mat Sto Total 5603 | . 739 708 462 470 1803 289 268 582 82 200 Wait 260 | . 66 1 9 . 101 . 51 3 5 24 Move 4657 | . 610 686 367 440 1518 216 184 438 49 149 Hop . | . . . . . . . . . . . Pick Up 81 | . 15 2 18 1 16 9 4 15 . 1 Fast Attach 46 | . 4 2 2 1 8 4 3 15 1 6 Attach 29 | . 1 . 3 . 9 5 3 6 1 1 Detach 9 | . 1 . 1 . 1 1 2 1 . 2 Swap 43 | . 3 1 10 1 10 3 1 10 2 2 Drop 77 | . 9 5 22 3 17 12 4 1 . 4 Fire 359 | . 28 10 30 24 90 39 16 87 24 11 Melee 27 | . . . . . 27 . . . . . Ram . | . . . . . . . . . . . Kick 3 | . 2 1 . . . . . . . . Crush 5 | . . . . . 4 . . 1 . . Escape Stasis 5 | . . . . . . . . 5 . . Rewire 2 | . . . . . 2 . . . . . Trap . | . . . . . . . . . . . Miscellaneous . | . . . . . . . . . . . Route ------- -11/Junkyard -10/Materials (discovered 4 exits: *Mat x3 / [*Min]) -10/Mines (discovered 2 exits: *Mat x2) -9/Materials (discovered 2 exits: *Mat / [*Min]) -9/Mines (discovered 2 exits: *Mat / *Exi) -9/Exiles -8/Mines -8/Materials -8/Garrison (discovered 2 exits: [*Mat x2]) -8/Materials -8/Storage History --------- Turn | Location | Event 1 | -11/Junkyard | Discovered new exit (range 0) 1 | -11/Junkyard | Entered Materials 229 | -10/Materials | Discovered new exit (range 15) 303 | -10/Materials | Build established: Mutant 378 | -10/Materials | Repaired Aluminum Leg 712 | -10/Materials | Discovered new exit (range 12) 958 | -10/Materials | Discovered new exit (range 9) 1045 | -10/Materials | Discovered new exit (range 14) 1174 | -10/Materials | Entered Mines 1312 | -10/Mines | Discovered new exit (range 8) 1443 | -10/Mines | Learned location of Zion (-7) 1450 | -10/Mines | Received a Rocket Launcher from a helpful Derelict 1473 | -10/Mines | Discovered new exit (range 5) 1752 | -10/Mines | Found a damaged Exp. Sensor Array with a note attached 1756 | -10/Mines | Found Prototype Device 1756 | -10/Mines | Identified Exp. Sensor Array 2419 | -10/Mines | Assisted by bots powering up and referring to "LRC-V3" 2519 | -10/Mines | Entered Materials 2519 | -9/Materials | Accompanied by 3 allies 2519 | -9/Materials | Evolved 2 slots: Propulsion x1, Utility x1 2678 | -9/Materials | Discovered new exit (range 14) 3034 | -9/Materials | Discovered new exit (range 11) 3248 | -9/Materials | Entered Mines 3303 | -9/Mines | Learned 2 Materials zone layouts 3428 | -9/Mines | A weapon hastily lodged in a ceiling crevice suddenly fell to the ground 3477 | -9/Mines | Found a hidden stash of uninstalled traps 3637 | -9/Mines | Discovered new exit (range 3) 4012 | -9/Mines | Deemed a non-threat by the Exiles lab entrance 4013 | -9/Mines | Discovered new exit (range 5) 4020 | -9/Mines | Entered Exiles 4064 | -9/Exiles | Met 8R-AWN 4089 | -9/Exiles | Met EX-HEX 4152 | -9/Exiles | Met EX-DEC 4379 | -9/Exiles | Discovered new exit (range 10) 4670 | -9/Exiles | Met EX-BIN 4690 | -9/Exiles | Aligned with FarCom system 4692 | -9/Exiles | Given EX-Vault access code 4735 | -9/Exiles | Opened EX-Vault 4770 | -9/Exiles | Warned to stay clear of 0b10 Research branches 4855 | -9/Exiles | Attacked by the Exiles 5069 | -9/Exiles | Core integrity fell below 50% 5089 | -9/Exiles | Destroyed 8R-AWN 5097 | -9/Exiles | Found Prototype Device 5097 | -9/Exiles | Identified AS-neutralizer No. 17b 5107 | -9/Exiles | Lost 10 parts (1p4n2u3w) 5302 | -9/Exiles | Build established: Scavenger-Mutant 5350 | -9/Exiles | Found Prototype Ballistic Gun 5356 | -9/Exiles | Found Prototype Ballistic Gun 5362 | -9/Exiles | Found Prototype Protection 5371 | -9/Exiles | Found Prototype Processor 5551 | -9/Exiles | Identified 8R-AWN's Boregun (x2) 5569 | -9/Exiles | Destroyed EX-DEC 5637 | -9/Exiles | Destroyed EX-HEX 5644 | -9/Exiles | Destroyed EX-BIN 5658 | -9/Exiles | Found Prototype Device 5658 | -9/Exiles | Identified System Purifier 5796 | -9/Exiles | Found Prototype Processor 6891 | -9/Exiles | Entered Mines 6904 | -8/Mines | ME-RLN came to Exiles' defense 6918 | -8/Mines | Identified Exp. Core Analyzer 6925 | -8/Mines | Identified Exp. Targeting Computer 7104 | -8/Mines | Found Prototype Device 7107 | -8/Mines | Found Prototype Hackware 7110 | -8/Mines | Found Prototype Hackware 7114 | -8/Mines | Found Prototype Special Weapon 7124 | -8/Mines | Found Prototype Hackware 7295 | -8/Mines | Discovered new exit (range 6) 7328 | -8/Mines | Entered Materials 7328 | -8/Materials | Evolved 2 slots: Utility x2 7328 | -8/Materials | Identified ME-RLN's Chromatic Screen 7716 | -8/Materials | Identified exit to Garrison 7716 | -8/Materials | Entered Garrison 7760 | -8/Garrison | Triggered checkpoint 7846 | -8/Garrison | Garrison Relay disabled 7866 | -8/Garrison | Garrison Relay disabled 7884 | -8/Garrison | Triggered checkpoint 8026 | -8/Garrison | Triggered checkpoint 8174 | -8/Garrison | Discovered new exit (range 12) 8290 | -8/Garrison | Garrison Relay disabled 8304 | -8/Garrison | Core integrity fell below 50% 8321 | -8/Garrison | System corruption reached 10% 9136 | -8/Garrison | Triggered checkpoint 9337 | -8/Garrison | Lost 6 parts (1p1n1u3w) 9433 | -8/Garrison | Found Imp. Powered Armor 9496 | -8/Garrison | Discovered new exit (range 9) 9528 | -8/Garrison | Entered Materials 9660 | -8/Materials | Core integrity fell below 20% 9713 | -8/Materials | Discovered new exit (range 13) 9762 | -8/Materials | Entered Storage 9967 | -8/Storage | Build established: Hauler-Mutant 10338 | -8/Storage | Destroyed by Y-45 Defender with Heavy Assault Rifle Last Messages --------------- 10134_ System corrupted: Component data lost. 10156_ System corrupted: Matter fused (-6). 10188_ Connecting with Terminal... >>Layout(Zone) Retrieving Zone 7O layout... Downloaded map data. 10189_ System corrupted: Heat flow error (+181). 10212_ System corrupted: Heat flow error (+177). 10237_ System corrupted: Component data lost. 10245_ Slug penetrates Wall. 10260_ TLEU:ANESPYL&OZCDIVX=/L4